bitfinex-derivatives/quotes_SOLF0:USTF0_20250320
["timestamp","ask_amount","ask_price","bid_price","bid_amount"]
[1742467932635,17.76295403,130.39,130.37,568.96756313]
[1742467932831,29.96,130.38,130.37,568.96756313]
[1742467933034,29.96,130.38,130.32,23.81895492]
[1742467933433,0.05504172,130.36,130.32,23.81895492]
[1742467933935,0.05504172,130.36,130.33,17.76295403]
[1742467934133,0.05504172,130.36,130.35,7.6745]
[1742467934332,0.05504172,130.36,130.35,25.43745403]
[1742467934528,29.96,130.39,130.37,7.6728]
[1742467934727,29.96,130.39,130.35,17.76295403]
[1742467934922,29.96,130.41,130.35,47.72295403]
[1742467935227,29.96,130.41,130.38,7.6728]
[1742467935631,29.96,130.45,130.39,17.76295403]
[1742467935824,0.05420978,130.41,130.4,7.6711]
[1742467936030,29.96,130.45,130.39,17.76295403]
[1742467936229,0.04971413,130.42,130.39,17.81799575]
[1742467937034,0.04971413,130.42,130.4,7.6712]
[1742467937238,0.04971413,130.42,130.39,17.81799575]
[1742467937636,0.04971413,130.42,130.41,7.671]
[1742467937935,0.04971413,130.42,130.41,25.43395403]
[1742467938233,0.04971413,130.42,130.41,17.76295403]
[1742467938540,0.04971413,130.42,130.39,17.81799575]
[1742467939635,0.04971413,130.42,130.4,7.6715]
[1742467939936,0.04971413,130.42,130.39,17.81799575]
[1742467940334,29.96,130.41,130.39,0.05504172]
[1742467941337,29.96,130.41,130.39,7.72684172]
[1742467941537,29.96,130.41,130.39,0.05504172]
[1742467942038,0.04971413,130.42,130.39,0.05504172]
[1742467942236,0.04971413,130.42,130.4,17.76295403]
[1742467942538,0.04971413,130.42,130.41,7.671]
[1742467943039,0.04971413,130.42,130.4,14.97561784]
[1742467943241,0.04971413,130.42,130.4,44.93561784]
[1742467943641,2.34709527,130.49,130.4,44.93561784]
[1742467943836,29.96,130.48,130.43,17.76295403]
[1742467944339,29.96,130.48,130.46,7.668]
[1742467944538,29.96,130.48,130.43,17.76295403]
[1742467944738,30.00869177,130.48,130.46,7.72006347]
[1742467945737,30.00869177,130.48,130.46,0.05236347]
[1742467946241,30.00869177,130.48,130.44,7.6689]
[1742467946442,0.04869177,130.48,130.43,17.76295403]
[1742467946640,30.00869177,130.48,130.43,17.76295403]
[1742467947343,30.00869177,130.48,130.45,7.6683]
[1742467947645,30.00869177,130.48,130.43,1.94661043]
[1742467948143,30.00869177,130.48,130.44,7.6689]
[1742467949044,30.00869177,130.48,130.43,9.61621043]
[1742467949342,37.67589177,130.48,130.43,9.61621043]
[1742467949646,30.00869177,130.48,130.44,7.6691]
[1742467950144,30.00869177,130.48,130.43,1.94661043]
[1742467950346,30.00869177,130.48,130.43,9.61611043]
[1742467950544,37.67589177,130.48,130.43,9.61611043]
[1742467950745,30.00869177,130.48,130.42,2.06]
[1742467951344,30.00869177,130.48,130.42,9.73]
[1742467951743,30.00869177,130.48,130.42,2.06]
[1742467952347,7.668,130.47,130.42,9.7302]
[1742467952851,7.6683,130.46,130.42,9.7301]
[1742467953048,29.96,130.45,130.42,9.7301]
[1742467953240,30.01429126,130.45,130.42,9.7301]
[1742467953445,7.6693,130.44,130.41,9.8438]
[1742467954149,37.68319126,130.45,130.41,9.8438]
[1742467954345,37.68319126,130.45,130.42,7.6702]
[1742467954741,7.6693,130.44,130.41,2.173]
[1742467955742,7.6701,130.43,130.41,2.173]
[1742467956149,7.6699,130.43,130.41,2.173]
[1742467956852,30.01429126,130.45,130.41,2.173]
[1742467957353,0.05429126,130.45,130.41,49.87595403]
[1742467957651,0.05429126,130.45,130.43,17.76295403]
[1742467957955,0.05429126,130.45,130.44,7.6692]
[1742467958252,0.29536529,130.47,130.44,29.94]
[1742467958443,111.7588837,130.48,130.46,17.76295403]
[1742467959148,111.7588837,130.48,130.47,7.6675]
[1742467959349,0.05726173,130.48,130.46,17.81724529]
[1742467959854,0.05726173,130.48,130.47,7.6675]
[1742467960356,0.05726173,130.48,130.46,25.48504529]
[1742467960653,0.05726173,130.48,130.46,17.81724529]
[1742467961855,0.05726173,130.48,130.46,0.05429126]
[1742467964752,47.76021576,130.48,130.46,0.05429126]
[1742467964953,7.6675,130.47,130.46,0.05429126]
[1742467965458,47.76021576,130.48,130.39,292.781]
[1742467965660,17.76295403,130.46,130.39,285.1092]
[1742467965951,29.94,130.45,130.39,285.1092]
[1742467966157,7.6695,130.44,130.41,7.6707]
[1742467966547,7.7282704,130.44,130.41,7.6707]
[1742467966751,0.0587704,130.44,130.42,7.6702]
[1742467966947,0.0587704,130.44,130.39,285.1092]
[1742467967349,7.6702,130.43,130.4,7.6712]
[1742467967560,0.0587704,130.44,130.39,285.1092]
[1742467968258,0.0587704,130.44,130.43,7.6698]
[1742467971854,8.67893,130.49,130.43,7.66]
[1742467971855,1.01233,130.49,130.43,7.66]
[1742467972058,1.01233,130.49,130.45,17.76295403]
[1742467972255,1.01233,130.49,130.46,2.1291]
[1742467972459,1.01233,130.49,130.48,7.6669]
[1742467972859,60.19079587,130.53,130.5,7.6656]
[1742467973065,0.0486052,130.5,130.47,19.85240654]
[1742467973261,30.27079587,130.53,130.47,19.85983628]
[1742467973463,0.04917918,130.5,130.49,7.6663]
[1742467976966,37.5825,130.56,130.52,7.6643]
[1742467977368,7.6625,130.56,130.51,17.76295403]
[1742467977567,7.6625,130.56,130.52,7.6642]
[1742467977972,7.6625,130.56,130.53,7.6638]
[1742467978274,0.05240957,130.55,130.53,0.05357096]
[1742467979175,0.05240957,130.55,130.53,7.71727096]
[1742467979673,0.05240957,130.55,130.53,0.05357096]
[1742467980471,7.6633,130.54,130.53,0.05357096]
[1742467981470,37.5633,130.54,130.53,0.05357096]
[1742467981866,37.5633,130.54,130.53,0.00439178]
[1742467982873,0.05240957,130.55,130.53,0.00439178]
[1742467983175,0.05240957,130.55,130.54,7.6633]
[1742467984074,0.05240957,130.55,130.54,7.6433]
[1742467984476,30.27079587,130.57,130.56,7.6622]
[1742467984865,30.27079587,130.57,130.53,49.73474581]
[1742467985074,30.27079587,130.57,130.55,7.6624]
[1742467985273,30.27079587,130.57,130.53,49.73474581]
[1742467985575,0.0537514,130.56,130.53,49.73474581]
[1742467986373,0.0537514,130.56,130.55,7.6622]
[1742467987065,0.0537514,130.56,130.55,25.42515403]
[1742467987268,60.17079587,130.62,130.55,17.76295403]
[1742467987473,60.17079587,130.62,130.56,29.9]
[1742467988275,0.05511471,130.6,130.58,0.05533979]
[1742467988480,0.05511471,130.6,130.58,7.71633979]
[1742467988981,0.05511471,130.6,130.58,0.05533979]
[1742467989675,0.05511471,130.6,130.58,7.71623979]
[1742467990078,0.05511471,130.6,130.58,0.05533979]
[1742467990280,0.05511471,130.6,130.58,7.71623979]
[1742467990481,0.05511471,130.6,130.58,0.05533979]
[1742467991480,7.6604,130.59,130.58,0.05533979]
[1742467991985,7.71521471,130.6,130.58,0.05533979]
[1742467992187,0.05511471,130.6,130.58,0.05533979]
[1742467992382,29.88,130.59,130.58,0.05533979]
[1742467993180,37.5404,130.59,130.58,0.05533979]
[1742467993685,29.88,130.59,130.58,0.05533979]
[1742467994890,0.05511471,130.6,130.58,7.71603979]
[1742467996189,0.05511471,130.6,130.59,7.6604]
[1742467996385,0.05511471,130.6,130.58,0.05533979]
[1742467996690,0.05511471,130.6,130.58,7.71603979]
[1742467997291,0.05511471,130.6,130.59,7.6604]
[1742467997892,0.05511471,130.6,130.58,7.71613979]
[1742467999095,0.05511471,130.6,130.58,0.05533979]
[1742467999292,7.71511471,130.6,130.58,0.05533979]
[1742467999492,0.05511471,130.6,130.58,0.05533979]
[1742467999693,7.6604,130.59,130.58,0.05533979]
[1742468000092,19.87586874,130.6,130.52,31.9181]
[1742468000292,7.6615,130.58,130.52,31.9181]
[1742468000793,7.6615,130.58,130.54,7.6628]
[1742468001189,0.05239827,130.57,130.55,0.05404141]
[1742468001995,7.71429827,130.57,130.55,0.05404141]
[1742468002398,0.05239827,130.57,130.55,0.05404141]
[1742468002596,37.5222,130.56,130.55,0.05404141]
[1742468003996,7.663,130.55,130.5,29.86]
[1742468004491,29.86,130.56,130.5,29.86]
[1742468004688,37.5225,130.56,130.5,29.86]
[1742468004895,7.6625,130.56,130.52,7.6641]
[1742468005191,7.71382733,130.55,130.53,0.05151829]
[1742468005396,0.05072733,130.55,130.53,0.05151829]
[1742468005994,0.05072733,130.55,130.54,7.6633]
[1742468006590,17.76295403,130.62,130.58,7.661]
[1742468006795,29.86,130.61,130.55,17.76295403]
[1742468006997,37.5192,130.61,130.55,17.76295403]
[1742468007301,37.5192,130.61,130.57,7.6612]
[1742468007590,29.86,130.61,130.58,7.6607]
[1742468007795,0.05032202,130.6,130.58,0.05456417]
[1742468008195,0.05032202,130.6,130.58,7.71526417]
[1742468008592,0.05032202,130.6,130.58,0.05456417]
[1742468008793,0.05032202,130.6,130.59,7.6604]
[1742468008994,0.05032202,130.6,130.58,0.05456417]
[1742468009895,0.05032202,130.6,130.59,7.6604]
[1742468010592,29.86,130.65,130.59,47.62295403]
[1742468010997,37.5173,130.65,130.59,47.62295403]
[1742468011199,29.86,130.65,130.61,7.6589]
[1742468011494,29.86,130.65,130.59,47.62295403]
[1742468011690,7.6578,130.64,130.61,0.05706075]
[1742468011997,0.05252733,130.63,130.61,0.05706075]
[1742468013101,0.05252733,130.63,130.62,7.6587]
[1742468013399,0.05252733,130.63,130.61,0.05706075]
[1742468014293,7.6587,130.62,130.61,0.05706075]
[1742468014501,0.05252733,130.63,130.61,0.05706075]
[1742468014693,7.6587,130.62,130.61,0.05706075]
[1742468022108,29.91252733,130.63,130.61,0.05706075]
[1742468022306,29.91252733,130.63,130.61,7.71586075]
[1742468022607,37.57072733,130.63,130.61,7.71586075]
[1742468023107,7.6587,130.62,130.61,0.05706075]
[1742468023510,29.91252733,130.63,130.61,0.05706075]
[1742468024409,17.76295403,130.62,130.61,0.05706075]
[1742468024712,7.6617,130.57,130.54,9.7932]
[1742468024912,29.84,130.59,130.53,2.1319]
[1742468025114,7.6626,130.56,130.53,7.6636]
[1742468025307,47.60295403,130.58,130.53,7.6636]
[1742468025816,7.6625,130.56,130.54,0.05034448]
[1742468026012,0.05809946,130.57,130.54,0.05034448]
[1742468026214,7.6628,130.55,130.54,0.05034448]
[1742468028117,37.5028,130.55,130.54,0.05034448]
[1742468041527,7.6659,130.5,130.47,6.1814]
[1742468041731,47.60295403,130.52,130.47,2.1319]
[1742468041928,17.76295403,130.5,130.45,7.6683]
[1742468042136,29.84,130.49,130.45,7.6683]
[1742468042630,0.05477724,130.48,130.46,0.04919429]
[1742468043029,29.84,130.51,130.46,29.88919429]
[1742468043230,29.84,130.52,130.5,7.6657]
[1742468044327,29.89772148,130.52,130.5,0.05674916]
[1742468044727,29.89772148,130.52,130.5,7.72184916]
[1742468045132,29.89772148,130.52,130.5,0.05674916]
[1742468045533,29.89772148,130.52,130.51,7.6651]
[1742468046332,29.89772148,130.52,130.5,7.72214916]
[1742468046835,29.89772148,130.52,130.5,0.05674916]
[1742468050036,37.56232148,130.52,130.5,0.05674916]
[1742468050529,7.6651,130.51,130.5,0.05674916]
[1742468051740,25.42805403,130.51,130.5,0.05674916]
[1742468052840,7.6651,130.51,130.5,0.05674916]
[1742468053139,37.56252148,130.52,130.5,0.05674916]
[1742468053336,29.89772148,130.52,130.5,0.05674916]
[1742468053542,29.89772148,130.52,130.5,7.72214916]
[1742468054040,29.89772148,130.52,130.51,7.6651]
[1742468054341,29.89772148,130.52,130.5,0.05674916]
[1742468054535,0.05772148,130.52,130.5,0.05674916]
[1742468055240,0.05772148,130.52,130.51,7.6651]
[1742468056641,252.82,130.58,130.54,7.6629]
[1742468056842,29.82,130.57,130.54,7.6629]
[1742468057141,37.4819,130.57,130.54,7.6629]
[1742468057342,29.82,130.57,130.53,7.6637]
[1742468057542,7.6625,130.56,130.53,7.6637]
[1742468057842,0.05265211,130.56,130.54,0.04873677]
[1742468058039,0.05265211,130.56,130.54,7.71193677]
[1742468058440,0.05265211,130.56,130.54,0.04873677]
[1742468058643,0.05265211,130.56,130.54,7.71203677]
[1742468059042,0.05265211,130.56,130.54,0.04873677]
[1742468059945,17.76295403,130.55,130.54,0.04873677]
[1742468060246,25.42575403,130.55,130.54,0.04873677]
[1742468061240,7.6651,130.51,130.48,4.2226]
[1742468061446,47.58295403,130.53,130.48,4.2226]
[1742468061637,47.58295403,130.53,130.49,7.6658]
[1742468062048,7.6649,130.52,130.49,7.6658]
[1742468062251,47.58295403,130.53,130.48,11.8892]
[1742468062548,0.0491558,130.52,130.49,0.05447772]
[1742468063441,7.7140558,130.52,130.49,7.72047772]
[1742468063849,7.7140558,130.52,130.49,0.05447772]
[1742468064048,0.0491558,130.52,130.49,0.05447772]
[1742468064749,7.6656,130.51,130.49,0.05447772]
[1742468064951,0.0491558,130.52,130.49,0.05447772]
[1742468065351,0.0491558,130.52,130.5,7.6654]
[1742468065551,0.0491558,130.52,130.49,0.05447772]
[1742468065951,0.0491558,130.52,130.51,7.6651]
[1742468066155,0.0491558,130.52,130.5,29.8]
[1742468066156,40.46538866,130.55,130.5,29.8]
[1742468066748,40.46538866,130.56,130.5,29.8]
[1742468067145,0.05077844,130.54,130.52,0.053912]
[1742468067851,0.05077844,130.54,130.53,7.6639]
[1742468069550,0.05077844,130.54,130.52,7.718112]
[1742468069750,0.05077844,130.54,130.52,0.053912]
[1742468070351,0.05077844,130.54,130.53,7.6639]
[1742468070552,0.05077844,130.54,130.52,0.053912]
[1742468071850,29.85077844,130.54,130.52,0.053912]
[1742468072255,25.42685403,130.53,130.52,0.053912]
[1742468078461,17.76295403,130.53,130.52,0.053912]
[1742468078965,25.42685403,130.53,130.52,0.053912]
[1742468082270,25.42295403,130.53,130.41,29.78]
[1742468082473,17.76295403,130.47,130.4,29.78]
[1742468082673,17.76295403,130.47,130.41,2.1025]
[1742468083172,17.76295403,130.47,130.44,7.6688]
[1742468083370,0.05517595,130.45,130.43,29.83817519]
[1742468083574,29.78,130.5,130.44,4.1306]
[1742468084276,29.78,130.52,130.5,7.6657]
[1742468084774,70.30313856,130.52,130.5,7.71723375]
[1742468087174,70.30313856,130.52,130.51,7.6651]
[1742468087375,29.8377499,130.52,130.51,7.6651]
[1742468087673,29.8377499,130.52,130.5,7.71673375]
[1742468087875,29.8377499,130.52,130.5,0.05153375]
[1742468088276,29.8377499,130.52,130.51,7.6651]
[1742468088673,0.0577499,130.52,130.51,7.6651]
[1742468090373,40.46538866,130.57,130.51,17.76295403]
[1742468090567,40.46538866,130.57,130.53,17.76295403]
[1742468090773,40.46538866,130.57,130.54,2.1129]
[1742468091075,40.46538866,130.57,130.56,7.6622]
[1742468092176,0.05193009,130.58,130.56,7.6622]
[1742468092868,0.05193009,130.58,130.55,31.9483806]
[1742468093278,0.05193009,130.58,130.55,2.1683806]
[1742468093880,0.05193009,130.58,130.55,0.0516806]
[1742468094274,7.6622,130.56,130.55,0.0516806]
[1742468094477,0.05193009,130.58,130.55,0.0516806]
[1742468094672,7.71323009,130.58,130.55,0.0516806]
[1742468094876,0.05193009,130.58,130.55,0.0516806]
[1742468095681,0.05193009,130.58,130.55,17.81463463]
[1742468095880,0.05193009,130.58,130.55,19.79113463]
[1742468096081,29.76,130.61,130.55,19.79113463]
[1742468096282,29.76,130.61,130.56,2.1713]
[1742468096483,29.76,130.61,130.58,7.6605]
[1742468096679,40.46538866,130.64,130.56,2.1713]
[1742468096881,70.22538866,130.64,130.57,47.52295403]
[1742468097183,0.05297168,130.62,130.59,0.05115717]
[1742468097692,0.05297168,130.62,130.61,7.6587]
[1742468098874,0.05297168,130.62,130.6,7.6596]
[1742468099085,0.05297168,130.62,130.59,17.8141112]
[1742468100083,0.05297168,130.62,130.6,7.6598]
[1742468100279,0.05297168,130.62,130.59,17.8141112]
[1742468100582,0.05297168,130.62,130.61,7.6592]
[1742468101085,0.05297168,130.62,130.61,9.7993]
[1742468101283,0.05297168,130.62,130.61,11.9517]
[1742468101485,29.76,130.68,130.61,29.71545403]
[1742468101682,40.46538866,130.69,130.63,17.76295403]
[1742468101986,70.22538866,130.69,130.63,47.52295403]
[1742468102185,37.3949,130.69,130.64,7.6573]
[1742468102385,7.6549,130.69,130.63,47.52295403]
[1742468102587,0.05281159,130.68,130.65,0.05498167]
[1742468103289,0.05281159,130.68,130.65,7.71188167]
[1742468103487,0.05281159,130.68,130.65,0.05498167]
[1742468103689,7.70811159,130.68,130.65,0.05498167]
[1742468104290,0.05281159,130.68,130.65,0.05498167]
[1742468105091,29.79281159,130.68,130.65,0.05498167]
[1742468105890,7.6563,130.66,130.65,0.05498167]
[1742468107493,7.6582,130.63,130.61,4.2925]
[1742468107889,29.74,130.65,130.61,4.2925]
[1742468108088,17.76295403,130.63,130.56,254.7743]
[1742468108287,29.74,130.62,130.56,254.7743]
[1742468108588,0.04966576,130.6,130.58,0.05021019]
[1742468109190,7.70956576,130.6,130.58,0.05021019]
[1742468109388,0.04966576,130.6,130.58,0.05021019]
[1742468110093,47.50295403,130.59,130.58,0.05021019]
[1742468110295,7.6612,130.58,130.53,7.6637]
[1742468110490,47.50295403,130.59,130.52,4.174]
[1742468110686,29.74,130.59,130.53,29.74]
[1742468110892,29.74,130.61,130.53,47.50295403]
[1742468111395,29.74,130.61,130.56,7.6619]
[1742468111597,0.04989195,130.58,130.56,29.78996108]
[1742468111992,0.04989195,130.58,130.56,37.45186108]
[1742468112998,0.04989195,130.58,130.57,7.6616]
[1742468117304,0.04989195,130.58,130.56,37.45196108]
[1742468117702,0.04989195,130.58,130.56,29.78996108]
[1742468117907,0.04989195,130.58,130.56,0.04996108]
[1742468118306,0.04989195,130.58,130.57,7.6616]
[1742468119104,0.04989195,130.58,130.56,7.71196108]
[1742468120106,0.04989195,130.58,130.57,7.6616]
[1742468120300,0.04989195,130.58,130.56,0.04996108]
[1742468120710,0.04989195,130.58,130.56,7.71176108]
[1742468121611,0.04989195,130.58,130.57,7.6616]
[1742468121811,0.04989195,130.58,130.56,0.04996108]
[1742468122009,7.71109195,130.58,130.56,0.04996108]
[1742468122411,37.43109195,130.58,130.56,0.04996108]
[1742468122613,7.6616,130.57,130.56,0.04996108]
[1742468123307,47.53284598,130.58,130.56,0.04996108]
[1742468124214,7.6616,130.57,130.56,0.04996108]
[1742468124813,55.19414598,130.58,130.56,0.04996108]
[1742468125217,29.76989195,130.58,130.56,0.04996108]
[1742468126713,37.43119195,130.58,130.56,0.04996108]
[1742468127515,7.6616,130.57,130.56,0.04996108]
[1742468127821,55.19414598,130.58,130.56,0.04996108]
[1742468128324,47.53284598,130.58,130.56,0.04996108]
[1742468128524,7.6616,130.57,130.56,0.04996108]
[1742468129425,29.76989195,130.58,130.56,0.04996108]
[1742468129923,37.43089195,130.58,130.56,0.04996108]
[1742468130727,7.6616,130.57,130.56,0.04996108]
[1742468131823,37.43119195,130.58,130.56,0.04996108]
[1742468132326,29.76989195,130.58,130.56,0.04996108]
[1742468132526,7.6616,130.57,130.56,0.04996108]
[1742468132826,29.76989195,130.58,130.56,0.04996108]
[1742468133227,37.43119195,130.58,130.56,0.04996108]
[1742468134331,7.6616,130.57,130.56,0.04996108]
[1742468134930,37.43119195,130.58,130.56,0.04996108]
[1742468135123,29.76989195,130.58,130.56,0.04996108]
[1742468135729,37.43109195,130.58,130.56,0.04996108]
[1742468135926,29.76989195,130.58,130.56,0.04996108]
[1742468136429,7.6616,130.57,130.56,0.04996108]
[1742468137924,0.04989195,130.58,130.56,0.04996108]
[1742468138323,0.04989195,130.58,130.56,7.71186108]
[1742468138530,0.04989195,130.58,130.56,0.04996108]
[1742468139428,29.74989195,130.58,130.56,0.04996108]
[1742468140129,7.6616,130.57,130.56,0.04996108]
[1742468140323,47.51284598,130.58,130.51,252.7]
[1742468140524,47.46295403,130.58,130.51,252.7]
[1742468141234,47.46295403,130.58,130.49,23.84305403]
[1742468141428,0.05265596,130.56,130.53,0.0484318]
[1742468141728,29.7,130.55,130.53,0.0484318]
[1742468144636,37.3632,130.55,130.53,0.0484318]
[1742468145131,7.6633,130.54,130.53,0.0484318]
[1742468149236,25.42625403,130.54,130.53,0.0484318]
[1742468149438,17.76295403,130.54,130.46,282.5]
[1742468149833,7.6643,130.53,130.5,7.6656]
[1742468150039,29.7,130.52,130.5,7.6656]
[1742468150436,29.75659185,130.52,130.51,7.6651]
[1742468150738,29.75659185,130.52,130.5,0.04936322]
[1742468150739,0.05659185,130.52,130.5,0.04936322]
[1742468151137,0.05659185,130.52,130.51,7.6651]
[1742468152140,0.05659185,130.52,130.5,7.71476322]
[1742468152742,0.05659185,130.52,130.51,7.6651]
[1742468153540,0.05659185,130.52,130.5,7.71486322]
[1742468153740,0.05659185,130.52,130.5,0.04936322]
[1742468154744,0.05659185,130.52,130.5,7.71476322]
[1742468155042,0.05659185,130.52,130.5,0.04936322]
[1742468155243,0.05659185,130.52,130.51,7.6651]
[1742468156439,0.05659185,130.52,130.5,0.04936322]
[1742468157041,0.05659185,130.52,130.5,7.71486322]
[1742468157343,0.05659185,130.52,130.5,0.04936322]
[1742468157539,0.05659185,130.52,130.5,7.71476322]
[1742468159146,0.05659185,130.52,130.5,0.04936322]
[1742468159346,11.42533874,130.52,130.5,0.04936322]
[1742468159742,7.6651,130.51,130.5,0.04936322]
[1742468160143,19.03384689,130.51,130.5,0.04936322]
[1742468160546,48.71384689,130.51,130.5,0.04936322]
[1742468160745,41.04874689,130.51,130.5,0.04936322]
[1742468161848,29.68,130.51,130.5,0.04936322]
[1742468163553,7.72149185,130.52,130.5,0.04936322]
[1742468163751,0.05659185,130.52,130.5,0.04936322]
[1742468164450,0.05659185,130.52,130.5,7.71496322]
[1742468164652,0.05659185,130.52,130.5,0.04936322]
[1742468165051,0.05659185,130.52,130.51,7.6651]
[1742468167349,0.05659185,130.52,130.5,11.41811011]
[1742468167853,0.05659185,130.52,130.51,7.6651]
[1742468168953,0.05659185,130.52,130.51,19.03384689]
[1742468169656,0.05659185,130.52,130.51,7.6651]
[1742468173256,0.05659185,130.52,130.5,19.08361011]
[1742468173557,0.05659185,130.52,130.5,0.04936322]
[1742468173751,19.09013874,130.52,130.5,0.04936322]
[1742468175058,7.6651,130.51,130.5,0.04936322]
[1742468175357,19.03384689,130.51,130.5,0.04936322]
[1742468175953,11.36874689,130.51,130.5,0.04936322]
[1742468177157,19.03384689,130.51,130.5,0.04936322]
[1742468177657,11.36874689,130.51,130.5,0.04936322]
[1742468178459,19.03384689,130.51,130.5,0.04936322]
[1742468178659,11.36874689,130.51,130.5,0.04936322]
[1742468179060,41.10533874,130.52,130.5,0.04936322]
[1742468179651,41.10533874,130.52,130.5,7.71496322]
[1742468181261,29.73659185,130.52,130.5,7.71496322]
[1742468182565,0.05659185,130.52,130.51,7.6651]
[1742468183460,0.05659185,130.52,130.5,19.08351011]
[1742468183662,0.05659185,130.52,130.5,11.41811011]
[1742468184160,0.05659185,130.52,130.51,7.6651]
[1742468186570,0.05659185,130.52,130.5,7.71476322]
[1742468187270,0.05659185,130.52,130.51,7.6651]
[1742468188967,0.05659185,130.52,130.51,19.03384689]
[1742468190278,0.05659185,130.52,130.51,11.36874689]
[1742468190683,0.05659185,130.52,130.5,11.41811011]
[1742468191380,0.05659185,130.52,130.51,7.6651]
[1742468191576,0.05659185,130.52,130.5,11.41811011]
[1742468192482,0.05659185,130.52,130.51,7.6651]
[1742468194683,0.05659185,130.52,130.5,19.08351011]
[1742468194877,0.05659185,130.52,130.5,0.04936322]
[1742468196081,0.05659185,130.52,130.51,7.6651]
[1742468197386,0.05659185,130.52,130.5,0.04936322]
[1742468197881,0.05659185,130.52,130.51,7.6651]
[1742468199088,0.05659185,130.52,130.5,7.71476322]
[1742468199585,0.05659185,130.52,130.51,7.6651]
[1742468199786,0.05659185,130.52,130.5,0.04936322]
[1742468200188,0.05659185,130.52,130.51,7.6651]
[1742468200388,0.05659185,130.52,130.51,19.03384689]
[1742468202090,0.05659185,130.52,130.51,11.36874689]
[1742468202491,40.46538866,130.56,130.54,7.6633]
[1742468202684,40.46538866,130.56,130.54,19.03204689]
[1742468203594,40.51816051,130.56,130.55,11.36874689]
[1742468203887,0.05277185,130.56,130.55,11.36874689]
[1742468204192,0.05277185,130.56,130.54,11.42726577]
[1742468204490,7.71497185,130.56,130.54,11.42726577]
[1742468204790,7.71497185,130.56,130.54,0.05851888]
[1742468207895,0.05277185,130.56,130.54,7.72171888]
[1742468208397,0.05277185,130.56,130.55,7.6628]
[1742468209194,0.05277185,130.56,130.55,19.03154689]
[1742468210297,40.46538866,130.58,130.57,7.6616]
[1742468210497,40.46538866,130.58,130.57,19.03034689]
[1742468210899,1.80757077,130.59,130.58,7.661]
[1742468211098,120.58319999,130.6,130.58,11.36874689]
[1742468211299,53.4631602,130.6,130.59,11.36874689]
[1742468211598,53.51812587,130.6,130.59,11.36874689]
[1742468211997,53.51812587,130.6,130.59,19.02914689]
[1742468213898,0.05496567,130.6,130.58,0.05892568]
[1742468214096,7.71506567,130.6,130.58,0.05892568]
[1742468214900,0.05496567,130.6,130.58,0.05892568]
[1742468216001,0.05496567,130.6,130.59,7.6604]
[1742468216403,0.05496567,130.6,130.59,19.02914689]
[1742468219502,0.05496567,130.6,130.59,7.6604]
[1742468220303,0.05496567,130.6,130.58,7.71962568]
[1742468220504,0.05496567,130.6,130.58,0.05892568]
[1742468220698,0.05496567,130.6,130.59,7.6604]
[1742468220898,0.05496567,130.6,130.59,19.02914689]
[1742468221803,0.05496567,130.6,130.59,48.62914689]
[1742468222204,47.24524689,130.66,130.64,7.6573]
[1742468223103,47.24524689,130.66,130.63,7.6578]
[1742468223297,11.36874689,130.65,130.64,0.05030576]
[1742468223498,11.36874689,130.65,130.59,29.6]
[1742468223701,11.36874689,130.63,130.61,7.6592]
[1742468223903,40.96874689,130.63,130.58,11.36874689]
[1742468224405,29.6,130.63,130.58,11.36874689]
[1742468224607,0.0572305,130.62,130.6,11.36874689]
[1742468224803,0.0572305,130.62,130.61,7.6588]
[1742468226105,0.0572305,130.62,130.6,19.02824689]
[1742468226307,0.0572305,130.62,130.6,7.6595]
[1742468227107,0.0572305,130.62,130.61,7.6592]
[1742468227504,0.0572305,130.62,130.61,19.02794689]
[1742468229006,0.0572305,130.62,130.61,7.6592]
[1742468231605,0.0572305,130.62,130.6,48.60834689]
[1742468231806,0.0572305,130.62,130.59,0.05599044]
[1742468232806,0.0572305,130.62,130.6,7.6598]
[1742468233206,11.36874689,130.61,130.59,0.05599044]
[1742468233404,19.02854689,130.6,130.59,0.05599044]
[1742468233610,11.36874689,130.6,130.59,0.05599044]
[1742468233904,29.58,130.61,130.59,7.71589044]
[1742468234108,29.58,130.61,130.59,0.05599044]
[1742468235009,29.58,130.61,130.6,7.6598]
[1742468235308,29.58,130.61,130.59,0.05599044]
[1742468235504,11.42597739,130.62,130.59,0.05599044]
[1742468235704,19.08467739,130.62,130.59,7.71609044]
[1742468235902,19.08467739,130.62,130.59,0.05599044]
[1742468236103,11.36874689,130.61,130.59,0.05599044]
[1742468236406,29.58,130.6,130.56,7.6617]
[1742468236607,11.36874689,130.59,130.56,7.6617]